bitfinex-derivatives/quotes_SOLF0:USTF0_20220106
["timestamp","ask_amount","ask_price","bid_price","bid_amount"]
[1641470127549,0.16,147.79,147.73,33.11179]
[1641470132160,0.16,147.79,147.73,37.11179]
[1641470132659,0.16,147.79,147.74,4.0]
[1641470133259,0.16,147.79,147.76,27.66479]
[1641470133659,0.16,147.79,147.76,33.42779]
[1641470135363,0.16,147.79,147.76,61.09258]
[1641470141271,0.16,147.79,147.75,4.75492404]
[1641470141472,4.0,147.78,147.75,4.75492404]
[1641470141672,4.16,147.79,147.75,4.75492404]
[1641470142274,0.16,147.79,147.71,27.66479]
[1641470142472,4.0,147.78,147.71,27.66479]
[1641470142772,0.16,147.79,147.71,27.66479]
[1641470143875,4.16,147.79,147.71,34.38679]
[1641470144175,3.3963503,147.78,147.71,34.38679]
[1641470145876,0.16,147.79,147.71,39.14171404]
[1641470146878,0.16,147.79,147.72,6.11292323]
[1641470147478,0.16,147.79,147.75,27.66479]
[1641470147676,0.16,147.79,147.75,32.93979]
[1641470148879,0.05716229,147.78,147.75,27.66479]
[1641470149681,0.13716229,147.78,147.74,4.75492404]
[1641470150482,0.13716229,147.78,147.73,70.25892404]
[1641470151485,6.92116229,147.78,147.74,6.11589283]
[1641470151683,4.0,147.75,147.7,14.26828411]
[1641470151885,6.276,147.75,147.7,14.26828411]
[1641470152086,4.0,147.74,147.7,14.26828411]
[1641470152284,4.0,147.75,147.67,14.26828411]
[1641470152483,27.66479,147.77,147.67,18.26828411]
[1641470152683,0.13716229,147.78,147.67,18.26828411]
[1641470152883,0.13716229,147.78,147.67,14.26828411]
[1641470153483,0.13716229,147.78,147.66,98.04734199]
[1641470153884,0.13716229,147.78,147.68,27.66479]
[1641470154484,4.13716229,147.78,147.68,27.66479]
[1641470154684,0.13716229,147.78,147.68,27.66479]
[1641470155687,4.13716229,147.78,147.68,27.66479]
[1641470155891,4.0,147.77,147.68,27.66479]
[1641470156390,14.4054464,147.78,147.68,27.66479]
[1641470156590,14.26828411,147.77,147.68,27.66479]
[1641470157592,0.13716229,147.78,147.68,27.66479]
[1641470157791,0.13716229,147.78,147.68,55.32958]
[1641470158092,0.13716229,147.78,147.69,4.0]
[1641470158393,0.13716229,147.78,147.7,6.75972556]
[1641470159391,0.13716229,147.78,147.7,21.02800967]
[1641470160093,0.13716229,147.78,147.73,27.66479]
[1641470160294,0.13716229,147.78,147.73,34.64679]
[1641470162792,0.13716229,147.78,147.73,6.982]
[1641470162994,0.13716229,147.78,147.71,66.6998]
[1641470163693,0.13716229,147.78,147.69,13.45995403]
[1641470163894,0.13716229,147.78,147.69,76.39075403]
[1641470164694,9.55016229,147.78,147.69,6.7]
[1641470164894,4.0,147.75,147.69,6.7]
[1641470165096,10.835,147.75,147.69,6.7]
[1641470165294,4.0,147.73,147.67,14.26828411]
[1641470165595,4.0,147.72,147.67,14.26828411]
[1641470165794,4.0,147.73,147.67,14.26828411]
[1641470166395,4.0,147.72,147.67,14.26828411]
[1641470166595,45.93307411,147.74,147.67,14.26828411]
[1641470166794,45.93307411,147.74,147.62,27.66479]
[1641470166997,4.0,147.73,147.62,27.66479]
[1641470167494,4.0,147.72,147.62,27.66479]
[1641470167694,4.0,147.69,147.62,27.66479]
[1641470168094,4.0,147.68,147.61,14.26828411]
[1641470168497,9.871,147.68,147.61,14.26828411]
[1641470168698,4.0,147.67,147.59,14.26828411]
[1641470169198,9.871,147.68,147.59,14.26828411]
[1641470169398,4.0,147.67,147.59,14.26828411]
[1641470169897,93.08889,147.71,147.57,80.31938411]
[1641470169898,4.0,147.69,147.57,80.31938411]
[1641470170098,27.66479,147.68,147.57,115.05417411]
[1641470170298,27.66479,147.68,147.57,121.81961623]
[1641470170498,27.66479,147.68,147.58,3.83056733]
[1641470171598,27.66479,147.68,147.59,14.26828411]
[1641470172599,4.0,147.66,147.59,14.26828411]
[1641470173200,4.0,147.65,147.59,14.26828411]
[1641470173499,4.0,147.66,147.59,14.26828411]
[1641470173701,4.0,147.66,147.57,27.66479]
[1641470173899,4.0,147.65,147.56,14.26828411]
[1641470174101,4.0,147.63,147.56,14.26828411]
[1641470174302,11.004,147.63,147.56,14.26828411]
[1641470174500,4.0,147.62,147.56,14.26828411]
[1641470174901,4.0,147.62,147.54,27.66479]
[1641470174902,4.0,147.62,147.54,41.93307411]
[1641470175607,11.004,147.63,147.54,41.93307411]
[1641470175902,7.004,147.63,147.54,27.66479]
[1641470176102,27.66479,147.64,147.54,27.66479]
[1641470176502,27.66479,147.64,147.55,4.0]
[1641470176704,27.66479,147.64,147.55,8.394]
[1641470177105,27.66479,147.64,147.55,4.394]
[1641470177605,27.66479,147.64,147.56,14.26828411]
[1641470178005,67.6883,147.65,147.56,14.26828411]
[1641470178606,67.6883,147.65,147.55,21.03454487]
[1641470179208,67.6883,147.65,147.55,25.03454487]
[1641470179410,67.6883,147.65,147.56,14.26828411]
[1641470179610,27.66479,147.68,147.56,14.26828411]
[1641470179910,94.48059,147.68,147.56,23.88028411]
[1641470180210,27.66479,147.72,147.62,27.66479]
[1641470180411,27.66479,147.72,147.62,32.98179]
[1641470183716,93.59829,147.76,147.63,4.0]
[1641470183913,93.59829,147.76,147.63,76.72192564]
[1641470184114,93.59829,147.76,147.67,27.66479]
[1641470184313,27.66479,147.76,147.67,32.80079]
[1641470184914,68.3309,147.77,147.67,32.80079]
[1641470185915,4.0,147.76,147.67,32.80079]
[1641470186116,31.66479,147.76,147.67,5.136]
[1641470186315,31.66479,147.76,147.66,6.76155381]
[1641470186520,27.66479,147.76,147.66,6.76155381]
[1641470186716,31.66479,147.76,147.66,6.76155381]
[1641470187215,27.66479,147.76,147.66,6.76155381]
[1641470188217,32.86279,147.76,147.66,34.42634381]
[1641470188417,36.86279,147.76,147.66,34.42634381]
[1641470188819,4.0,147.75,147.66,27.66479]
[1641470189725,4.0,147.74,147.66,27.66479]
[1641470190126,4.0,147.74,147.63,65.959]
[1641470190328,4.0,147.75,147.63,65.959]
[1641470190528,4.0,147.73,147.63,65.959]
[1641470190726,4.0,147.73,147.62,38.02479]
[1641470191329,38.64079,147.76,147.62,38.02479]
[1641470191530,38.64079,147.76,147.63,64.1289]
[1641470191732,52.90907411,147.76,147.63,64.1289]
[1641470192132,48.90907411,147.76,147.67,27.66479]
[1641470192332,52.90907411,147.76,147.67,27.66479]
[1641470192533,34.64079,147.76,147.67,27.66479]
[1641470192735,27.66479,147.76,147.67,27.66479]
[1641470192932,31.66479,147.76,147.67,27.66479]
[1641470193132,3.39707595,147.75,147.63,145.17108411]
[1641470193337,4.0,147.72,147.63,78.39718411]
[1641470193535,8.435,147.72,147.63,14.26828411]
[1641470193935,8.435,147.72,147.64,1.35742141]
[1641470194334,4.0,147.7,147.64,1.35742141]
[1641470194533,4.0,147.67,147.64,1.35742141]
[1641470194733,4.0,147.67,147.62,41.93307411]
[1641470194734,4.941,147.67,147.63,1.35742141]
[1641470195234,8.941,147.67,147.63,1.35742141]
[1641470195434,8.941,147.67,147.62,27.66479]
[1641470195435,4.0,147.64,147.61,14.26828411]
[1641470195634,4.0,147.64,147.57,14.26828411]
[1641470195635,4.0,147.63,147.57,14.26828411]
[1641470196239,31.66479,147.62,147.57,14.26828411]
[1641470196840,31.66479,147.62,147.54,38.11565073]
[1641470196841,31.66479,147.62,147.54,52.38393484]
[1641470197041,27.66479,147.62,147.54,14.26828411]
[1641470197239,31.66479,147.62,147.54,14.26828411]
[1641470197439,27.66479,147.62,147.54,14.26828411]
[1641470198142,31.66479,147.62,147.54,14.26828411]
[1641470198342,31.66479,147.62,147.54,21.06176748]
[1641470199143,31.66479,147.62,147.53,48.70057656]
[1641470199842,4.0,147.59,147.53,41.93307411]
[1641470200042,6.949,147.59,147.53,14.26828411]
[1641470200844,6.949,147.59,147.53,18.26828411]
[1641470201045,27.66479,147.62,147.53,10.76750245]
[1641470201249,65.2191,147.64,147.53,17.37450245]
[1641470201444,65.2191,147.64,147.53,13.37450245]
[1641470201847,65.2191,147.64,147.53,17.37450245]
[1641470202247,65.2191,147.64,147.56,27.66479]
[1641470202946,65.2191,147.64,147.56,32.30679]
[1641470203247,65.2191,147.64,147.56,46.57507411]
[1641470203848,4.0,147.63,147.56,46.57507411]
[1641470204047,4.0,147.63,147.57,21.054896]
[1641470204048,8.409,147.63,147.57,21.054896]
[1641470204649,4.409,147.63,147.57,21.054896]
[1641470204950,4.409,147.63,147.54,14.26828411]
[1641470205952,4.409,147.63,147.55,14.26828411]
[1641470206152,65.2191,147.64,147.55,14.26828411]
[1641470206552,65.2191,147.64,147.56,14.26828411]
[1641470208253,65.2191,147.64,147.54,14.26828411]
[1641470208453,27.66479,147.62,147.54,14.26828411]
[1641470209056,27.66479,147.62,147.56,14.26828411]
[1641470209255,20.00398912,147.62,147.56,14.26828411]
[1641470209855,4.0,147.58,147.52,59.93639985]
[1641470210055,10.149,147.58,147.52,56.1055342]
[1641470210260,16.92177345,147.58,147.52,56.1055342]
[1641470210456,27.66479,147.57,147.52,38.11565073]
[1641470210657,27.66479,147.57,147.48,27.66479]
[1641470212058,6.149,147.58,147.48,27.66479]
[1641470212458,6.149,147.58,147.51,27.66479]
[1641470212856,10.149,147.58,147.51,27.66479]
[1641470213456,4.0,147.55,147.5,4.75124208]
[1641470213656,4.0,147.55,147.48,31.49652756]
[1641470213657,9.758,147.55,147.52,4.75124208]
[1641470214056,4.0,147.54,147.52,4.75124208]
[1641470215056,4.0,147.53,147.49,4.75124208]
[1641470215259,9.758,147.55,147.49,4.75124208]
[1641470215458,4.0,147.51,147.49,4.75124208]
[1641470215757,5.359,147.51,147.49,4.75124208]
[1641470216258,5.359,147.51,147.48,27.66479]
[1641470216958,67.1351,147.55,147.48,27.66479]
[1641470218461,67.1351,147.55,147.5,4.75124208]
[1641470219262,55.32958,147.58,147.5,4.75124208]
[1641470219463,55.32958,147.58,147.49,4.75124208]
[1641470219663,55.32958,147.58,147.49,8.75124208]
[1641470220268,55.32958,147.58,147.49,4.75124208]
[1641470220465,55.32958,147.58,147.53,4.75124208]
[1641470225272,55.32958,147.58,147.52,4.75124208]
[1641470225469,61.87358,147.58,147.52,4.75124208]
[1641470226270,4.0,147.53,147.52,4.208e-05]
[1641470226469,4.0,147.53,147.46,65.78044073]
[1641470226470,9.095,147.53,147.46,38.11565073]
[1641470226670,31.66479,147.52,147.46,38.11565073]
[1641470227670,31.66479,147.52,147.43,6.78901296]
[1641470228670,27.66479,147.52,147.43,6.78901296]
[1641470229169,27.66479,147.52,147.42,94.53749]
[1641470229370,27.66479,147.52,147.42,98.53749]
[1641470229870,27.66479,147.52,147.42,105.31003411]
[1641470230272,4.0,147.57,147.43,6.78061056]
[1641470230478,4.0,147.57,147.43,10.78061056]
[1641470230672,4.0,147.57,147.47,27.66479]
[1641470230872,55.32958,147.58,147.48,4.0]
[1641470231073,6.77254411,147.59,147.49,4.0]
[1641470231273,6.77254411,147.59,147.47,32.07779]
[1641470231274,6.77254411,147.59,147.5,4.0]
[1641470231672,6.77254411,147.59,147.5,8.89]
[1641470231873,63.7753,147.6,147.5,4.89]
[1641470232072,4.0,147.65,147.5,4.89]
[1641470232272,73.0835,147.65,147.5,74.2661]
[1641470232471,69.0835,147.65,147.5,74.2661]
[1641470232673,27.66479,147.64,147.54,27.66479]
[1641470232873,27.66479,147.64,147.54,34.24679]
[1641470234077,4.0,147.63,147.54,34.24679]
[1641470234275,31.66479,147.64,147.54,27.66479]
[1641470234575,27.66479,147.64,147.54,27.66479]
[1641470234776,27.66479,147.64,147.54,32.73779]
[1641470235579,27.66479,147.64,147.55,1.35522884]
[1641470236777,69.0835,147.65,147.58,31.66479]
[1641470236979,27.66479,147.66,147.58,36.73979]
[1641470237677,27.66479,147.66,147.58,32.73979]
[1641470238580,27.66479,147.66,147.59,1.35522884]
[1641470241084,31.66479,147.66,147.59,1.35522884]
[1641470241385,6.77002234,147.64,147.59,1.35522884]
[1641470241584,12.89402234,147.64,147.59,1.35522884]
[1641470242185,6.124,147.64,147.59,1.35522884]
[1641470242386,6.124,147.64,147.56,14.27734533]
[1641470242586,3.40193649,147.63,147.54,27.66479]
[1641470242885,31.06672649,147.63,147.54,27.66479]
[1641470243189,27.66479,147.63,147.54,27.66479]
[1641470244289,27.66479,147.63,147.55,1.35449441]
[1641470244689,31.66479,147.63,147.55,1.35449441]
[1641470244889,10.77116837,147.62,147.55,1.35449441]
[1641470245092,4.0,147.6,147.55,1.35449441]
[1641470245290,6.77254411,147.59,147.55,1.35449441]
[1641470245491,10.77254411,147.59,147.55,1.35449441]
[1641470245697,6.77162688,147.61,147.55,1.35449441]
[1641470245892,3.40295343,147.59,147.55,4.384]
[1641470246794,21.04897221,147.61,147.55,32.04879]
[1641470247093,6.77162688,147.61,147.55,32.04879]
[1641470247794,41.94213533,147.66,147.55,32.04879]
[1641470247996,27.66479,147.66,147.56,1.35530441]
[1641470248794,4.0,147.63,147.56,1.35530441]
[1641470248995,4.0,147.62,147.56,1.35530441]
[1641470249696,4.0,147.61,147.54,14.27734533]
[1641470249896,4.0,147.62,147.52,14.27734533]
[1641470250797,31.66479,147.62,147.52,14.27734533]
[1641470251397,31.66479,147.62,147.51,27.66479]
[1641470251598,27.66479,147.62,147.51,27.66479]
[1641470251798,27.66479,147.62,147.51,31.66479]
[1641470251998,27.66479,147.62,147.52,1.35550604]
[1641470252200,27.66479,147.62,147.52,5.35550604]
[1641470252399,27.66479,147.62,147.52,1.35550604]
[1641470252598,27.66479,147.62,147.52,5.35550604]
[1641470252799,27.66479,147.62,147.54,27.66479]
[1641470253602,27.66479,147.62,147.55,1.35550604]
[1641470254500,6.76979318,147.65,147.55,1.35550604]
[1641470255004,27.66479,147.64,147.55,1.35550604]
[1641470255205,31.06858194,147.64,147.54,29.02029604]
[1641470256104,27.66479,147.64,147.55,1.35550604]
[1641470259007,4.0,147.63,147.55,1.35550604]
[1641470259206,10.315,147.63,147.55,1.35550604]
[1641470259407,3.40550752,147.62,147.52,27.66479]
[1641470259607,7.40550752,147.62,147.52,27.66479]
[1641470259807,4.0,147.61,147.52,27.66479]
[1641470260808,7.40550752,147.62,147.52,27.66479]
[1641470261007,3.40550752,147.6,147.53,1.35829407]
[1641470261507,4.0,147.57,147.53,1.35829407]
[1641470261708,10.068,147.57,147.53,1.35829407]
[1641470262308,4.0,147.56,147.51,14.27734533]
[1641470262512,4.0,147.52,147.47,38.11565073]
[1641470262810,10.907,147.52,147.5,1.35756642]
[1641470263108,6.907,147.52,147.5,1.35756642]
[1641470263309,27.66479,147.51,147.5,1.35756642]
[1641470263509,27.66479,147.53,147.5,6.642e-05]
[1641470263911,27.66479,147.53,147.45,38.11565073]
[1641470264109,27.66479,147.53,147.42,10.63042555]
[1641470264810,27.66479,147.53,147.42,14.63042555]
[1641470265311,27.66479,147.53,147.44,27.66479]
[1641470265513,39.94959623,147.56,147.44,27.66479]
[1641470265514,27.66479,147.56,147.44,31.66479]
[1641470265813,27.66479,147.56,147.44,27.66479]
[1641470266516,27.66479,147.56,147.45,6.79710855]
[1641470270017,27.66479,147.56,147.47,4.0]
[1641470270218,6.77185617,147.6,147.46,4.0]
[1641470270417,38.18570163,147.62,147.46,6.7704807]
[1641470270815,42.18570163,147.62,147.46,10.7704807]
[1641470271218,4.0,147.61,147.46,51.68323998]
[1641470271416,27.66479,147.59,147.5,27.66479]
[1641470274621,38.43733411,147.59,147.47,3.833317]
[1641470274822,6.77369098,147.56,147.46,49.32672235]
[1641470275222,6.7743793,147.55,147.46,38.11565073]
[1641470275423,6.7743793,147.55,147.44,27.66479]
[1641470275622,27.66479,147.54,147.44,27.66479]
[1641470276022,27.66479,147.54,147.44,31.66479]
[1641470276222,68.3588,147.57,147.45,6.78978015]
[1641470276423,68.3588,147.57,147.45,79.63788015]
[1641470276825,6.77369098,147.56,147.45,79.63788015]
[1641470277022,68.3588,147.57,147.45,79.63788015]
[1641470277827,27.66479,147.55,147.45,79.63788015]
[1641470278024,27.66479,147.55,147.45,72.8481]
[1641470278225,6.77460877,147.54,147.45,4.379]
[1641470278426,6.77460877,147.54,147.43,38.11565073]
[1641470278825,6.77460877,147.54,147.42,68.2822]
[1641470279927,27.66479,147.52,147.43,27.66479]
[1641470280127,33.02279,147.52,147.43,27.66479]
[1641470281330,27.66479,147.55,147.43,27.66479]
[1641470281531,27.66479,147.55,147.44,4.0]
[1641470282133,27.66479,147.55,147.46,27.66479]
[1641470283634,27.66479,147.55,147.43,31.49768345]
[1641470283837,32.10579,147.55,147.43,31.49768345]
[1641470284037,31.66479,147.51,147.43,3.83289345]
[1641470284235,4.0,147.5,147.43,3.83289345]
[1641470284836,4.0,147.5,147.4,34.43825158]
[1641470285036,4.0,147.5,147.4,27.66479]
[1641470285637,4.0,147.5,147.41,6.78611484]
[1641470286039,27.66479,147.48,147.41,6.78611484]
[1641470286239,33.26979,147.48,147.41,6.78611484]
[1641470286439,33.26979,147.48,147.39,68.506]
[1641470287241,33.26979,147.48,147.42,4.76448036]
[1641470287942,27.66479,147.48,147.42,4.76448036]
[1641470289345,27.66479,147.48,147.43,4.76448036]
[1641470289545,4.0,147.47,147.43,4.76448036]
[1641470289745,6.815,147.47,147.43,4.76448036]
[1641470290145,27.66479,147.44,147.43,4.76448036]
[1641470290348,34.85479,147.44,147.42,4.76448036]
[1641470290545,34.85479,147.44,147.37,68.8356]
[1641470290745,34.85479,147.44,147.35,38.11565073]
[1641470291145,41.63399141,147.44,147.35,38.11565073]
[1641470291348,41.63399141,147.44,147.35,6.78754463]
[1641470292446,41.63399141,147.44,147.34,6.78754463]
[1641470293248,41.63399141,147.44,147.33,93.74233382]
[1641470293647,45.63399141,147.44,147.33,93.74233382]
[1641470293847,41.63399141,147.44,147.33,93.74233382]
[1641470294048,69.29878141,147.44,147.33,79.4571]
[1641470294652,69.29878141,147.44,147.35,4.0]
[1641470294852,55.32958,147.44,147.35,10.384]
[1641470295852,68.1666,147.46,147.38,4.0]
[1641470296253,68.1666,147.46,147.37,27.66479]
[1641470298654,68.1666,147.46,147.36,4.0]
[1641470298854,68.1666,147.46,147.35,18.28523382]
[1641470299155,68.1666,147.46,147.37,27.66479]
[1641470300657,68.1666,147.46,147.36,18.88823382]
[1641470301056,14.28523382,147.53,147.4,4.0]
[1641470301259,14.28523382,147.53,147.44,27.66479]
[1641470301260,96.47719,147.52,147.44,27.66479]
[1641470301459,96.47719,147.52,147.44,32.76579]
[1641470301859,14.28523382,147.53,147.44,32.76579]
[1641470302860,93.61839,147.54,147.44,32.76579]
[1641470304560,93.61839,147.54,147.45,1.35130988]
[1641470304760,27.66479,147.54,147.45,1.35130988]
[1641470304962,68.6777,147.57,147.45,1.35130988]
[1641470305160,68.6777,147.57,147.5,27.66479]
[1641470305362,68.6777,147.57,147.5,33.08979]
[1641470305561,14.28523382,147.58,147.5,33.08979]
[1641470305762,41.95002382,147.6,147.5,33.08979]
[1641470306961,3.40552078,147.59,147.5,33.08979]
[1641470307163,3.40552078,147.59,147.5,60.75458]
[1641470307964,45.3555446,147.63,147.5,60.75458]
[1641470308261,45.3555446,147.63,147.5,129.16468]
[1641470308764,3.40552078,147.62,147.5,129.16468]
[1641470308964,17.6907546,147.62,147.5,129.16468]
[1641470309364,17.6907546,147.62,147.51,4.0]
[1641470310565,17.6907546,147.62,147.5,77.8351]
[1641470311365,14.28523382,147.62,147.52,27.66479]
[1641470311965,17.6907546,147.62,147.52,27.66479]
[1641470312167,17.6907546,147.62,147.5,72.4101]
[1641470312565,17.6907546,147.62,147.51,4.0]
[1641470312765,17.6907546,147.62,147.5,72.4101]
[1641470312966,17.6907546,147.62,147.51,4.0]
[1641470313167,14.28523382,147.62,147.51,4.0]
[1641470313367,17.6907546,147.63,147.53,27.66479]
[1641470313966,3.40552078,147.63,147.53,27.66479]
[1641470315569,3.40552078,147.63,147.53,31.66479]
[1641470316369,96.58769,147.64,147.53,31.66479]
[1641470316370,96.58769,147.64,147.53,27.66479]
[1641470317372,3.38941667,147.63,147.53,27.66479]
[1641470317975,3.38941667,147.63,147.53,31.66479]
[1641470318472,68.9229,147.64,147.53,31.66479]
[1641470319575,68.9229,147.64,147.53,27.66479]
[1641470319774,68.9229,147.64,147.56,27.66479]
[1641470319974,27.66479,147.66,147.56,32.87979]
[1641470320775,14.28523382,147.68,147.57,4.0]
[1641470320976,14.28523382,147.68,147.56,32.87979]
[1641470321276,14.28523382,147.68,147.57,4.0]
[1641470321475,14.28523382,147.68,147.59,4.0]
[1641470321676,67.6062,147.69,147.59,9.044]
[1641470321874,67.6062,147.69,147.59,36.70879]
[1641470323380,67.6062,147.69,147.6,4.0]
[1641470323780,27.66479,147.7,147.64,27.66479]
[1641470323980,14.28523382,147.71,147.64,34.81479]
[1641470324179,14.28523382,147.71,147.64,38.81479]
[1641470324379,14.28523382,147.71,147.65,4.0]
[1641470324580,14.28523382,147.74,147.65,4.0]
[1641470325683,69.504,147.76,147.65,4.0]
[1641470325883,69.504,147.76,147.68,27.66479]
[1641470326685,3.38361131,147.75,147.68,27.66479]
[1641470331091,16.80559575,147.75,147.68,27.66479]
[1641470331289,16.80559575,147.75,147.65,62.8987]
[1641470331692,3.38361131,147.74,147.65,62.8987]
[1641470332088,3.38361131,147.74,147.64,27.66479]
[1641470332487,3.38361131,147.74,147.68,6.76063956]
[1641470332688,14.28523382,147.73,147.65,73.5063]
[1641470333290,14.28523382,147.73,147.66,4.0]
[1641470333592,14.28523382,147.73,147.67,4.0]
[1641470333791,0.13716229,147.77,147.66,4.732]
[1641470333991,0.13716229,147.77,147.69,4.0]
[1641470334192,0.13716229,147.77,147.7,27.66479]
[1641470336201,0.13716229,147.77,147.67,27.66479]
[1641470336400,5.13816229,147.77,147.67,27.66479]
[1641470337399,0.13716229,147.77,147.67,31.66479]
[1641470337600,0.13716229,147.77,147.68,4.0]
[1641470337800,0.13716229,147.77,147.68,8.678]
[1641470338000,0.13716229,147.77,147.68,4.678]
[1641470338401,0.13716229,147.77,147.68,8.678]
[1641470338600,0.13716229,147.77,147.68,4.678]
[1641470338803,0.13716229,147.77,147.67,66.0904481]
[1641470339001,0.13716229,147.77,147.67,55.32958]
[1641470339200,6.53316229,147.77,147.67,27.66479]
[1641470339704,6.53316229,147.77,147.65,204.8629]
[1641470340303,34.19795229,147.77,147.65,232.52769]
[1641470340802,38.19795229,147.77,147.65,232.52769]
[1641470341002,38.19795229,147.77,147.65,165.79139]
[1641470341204,34.19795229,147.77,147.65,165.79139]
[1641470342304,27.66479,147.73,147.65,165.79139]
[1641470342503,27.66479,147.73,147.65,97.17109]
[1641470342704,34.31479,147.73,147.65,97.17109]
[1641470342904,34.31479,147.73,147.63,27.66479]
[1641470343104,34.31479,147.73,147.61,66.6496]
[1641470343805,34.31479,147.73,147.61,70.6496]
[1641470344007,27.66479,147.73,147.61,70.6496]
[1641470344206,27.66479,147.73,147.61,66.6496]
[1641470344807,27.66479,147.73,147.61,70.6496]
[1641470345210,27.66479,147.73,147.61,66.6496]
[1641470345407,4.0,147.68,147.57,58.67546594]
[1641470345609,4.0,147.68,147.58,14.28523382]
[1641470345808,10.76727347,147.7,147.58,14.28523382]
[1641470346209,27.66479,147.65,147.58,14.28523382]
[1641470346408,34.23679,147.65,147.58,14.28523382]
[1641470346608,34.23679,147.65,147.55,9.94]
[1641470346911,34.23679,147.65,147.54,27.66479]
[1641470347310,4.0,147.63,147.53,78.83253382]
[1641470347710,4.0,147.62,147.53,14.28523382]
[1641470347911,4.0,147.6,147.53,14.28523382]
[1641470348112,4.0,147.56,147.53,14.28523382]
[1641470348311,4.0,147.56,147.5,38.11565073]
[1641470348312,4.0,147.54,147.5,38.11565073]
[1641470348513,4.0,147.54,147.5,4.55435073]
[1641470348711,31.66479,147.55,147.5,4.55435073]
[1641470349014,31.66479,147.55,147.43,27.66479]
[1641470349311,4.0,147.54,147.43,27.66479]
[1641470349813,4.0,147.54,147.42,65.1038]
[1641470350214,27.66479,147.5,147.42,65.1038]
[1641470350416,34.88279,147.5,147.42,65.1038]
[1641470350817,38.88279,147.5,147.39,6.77369098]
[1641470351019,34.88279,147.5,147.38,91.0]
[1641470351318,10.77759328,147.48,147.45,4.74441569]
[1641470351516,6.77759328,147.48,147.33,67.0405239]
[1641470351716,4.0,147.44,147.33,119.9429239]
[1641470351917,7.125,147.44,147.33,119.9429239]
[1641470352316,27.66479,147.42,147.33,69.85649181]
[1641470352517,27.66479,147.42,147.33,73.85649181]
[1641470352718,34.78979,147.44,147.33,69.85649181]
[1641470353319,34.78979,147.44,147.34,6.73409181]
[1641470354120,38.78979,147.44,147.34,6.73409181]
[1641470354319,34.78979,147.44,147.33,63.1224]
[1641470354520,38.78979,147.44,147.33,63.1224]
[1641470354920,45.56899141,147.44,147.33,63.1224]
[1641470355119,4.0,147.42,147.33,63.1224]
[1641470355319,41.56899141,147.44,147.3,64.5259]
[1641470355519,4.0,147.42,147.27,6.77920141]
[1641470355719,4.0,147.42,147.27,67.0022]
[1641470355922,10.78081031,147.41,147.27,67.0022]
[1641470356121,4.0,147.4,147.27,67.0022]
[1641470356320,27.66479,147.37,147.27,94.66699]
[1641470356523,34.66079,147.37,147.27,94.66699]
[1641470356720,6.996,147.37,147.27,94.66699]
[1641470356923,66.7735,147.43,147.27,98.66699]
[1641470357123,66.7735,147.43,147.29,6.77828238]
[1641470357522,6.78012069,147.42,147.27,94.66699]
[1641470358323,27.66479,147.39,147.27,94.66699]
[1641470358523,32.97379,147.39,147.27,94.66699]
[1641470361027,27.66479,147.39,147.29,4.0]
[1641470361224,27.66479,147.41,147.29,8.793]
[1641470361826,27.66479,147.41,147.3,4.0]
[1641470362231,27.66479,147.41,147.29,8.793]
[1641470362430,27.66479,147.41,147.32,27.66479]
[1641470362628,27.66479,147.41,147.32,33.50679]
[1641470364333,66.7735,147.43,147.33,4.0]
[1641470364533,67.3685,147.44,147.35,27.66479]
[1641470364732,67.3685,147.44,147.35,32.41979]
[1641470365132,34.44376163,147.45,147.35,32.41979]
[1641470367633,34.44376163,147.45,147.32,33.50679]
[1641470367634,4.0,147.43,147.32,27.66479]
[1641470367835,6.78035054,147.42,147.3,68.7849]
[1641470368034,4.0,147.41,147.3,68.7849]
[1641470368236,15.26235054,147.42,147.3,68.7849]